fUSD/lending_fUSD_20250809
["ID","MTS","AMOUNT","RATE_DAILY","PERIOD"]
[378148035,1754749839654,-151.0,0.000232,7]
[378148038,1754749839663,-202.704113,0.000232,7]
[378148041,1754749839673,-202.704113,0.000232,7]
[378148044,1754749839682,-151.0,0.000232,7]
[378148047,1754749839692,-151.0,0.000232,7]
[378148050,1754749839701,-151.0,0.000232,7]
[378148053,1754749839711,-151.0,0.000232,2]
[378148056,1754749839720,-151.0,0.000232,7]
[378148059,1754749839729,-151.0,0.000232,7]
[378148062,1754749839739,-151.0,0.000232,7]
[378148065,1754749839749,-175.52535048,0.000232,2]
[378148068,1754749839759,-152.3,0.000232,2]
[378148070,1754749839769,-151.0,0.000232,2]
[378148072,1754749839778,-151.0,0.000232,2]
[378148074,1754749839787,-151.0,0.000232,2]
[378148077,1754749839796,-151.0,0.000232,2]
[378148080,1754749839806,-151.0,0.000232,2]
[378148083,1754749839815,-151.0,0.000232,2]
[378148086,1754749839824,-151.0,0.000232,2]
[378148088,1754749839834,-151.0,0.000232,2]
[378148090,1754749839843,-151.0,0.000232,2]
[378148092,1754749839853,-151.0,0.000232,2]
[378148094,1754749839862,-151.0,0.000232,2]
[378148096,1754749839872,-151.0,0.000232,2]
[378148098,1754749839881,-151.0,0.000232,2]
[378148100,1754749839891,-151.0,0.000232,2]
[378148102,1754749839900,-151.0,0.000232,2]
[378148104,1754749839911,-151.0,0.000232,2]
[378148106,1754749839920,-151.0,0.000232,2]
[378148108,1754749839930,-151.0,0.000232,2]
[378148110,1754749839939,-151.0,0.000232,2]
[378148112,1754749839949,-151.0,0.000232,2]
[378148115,1754749839960,-151.0,0.000232,2]
[378148116,1754749839969,-151.0,0.000232,2]
[378148117,1754749839978,-500.0,0.000232,2]
[378148118,1754749839988,-1422.86653,0.000232,2]
[378148119,1754749839997,-151.0,0.000232,7]
[378148120,1754749840006,-151.0,0.000232,7]
[378148121,1754749840015,-151.0,0.000232,7]
[378148122,1754749840025,-151.0,0.000232,7]
[378148123,1754749840035,-158.06154,0.000232,7]
[378148124,1754749840044,-151.0,0.000232,7]
[378148125,1754749840053,-151.0,0.000232,7]
[378148126,1754749840063,-1546.48273779,0.00023226,2]
[378148127,1754749840072,-349.05922636,0.00023255,2]
[378148128,1754749840082,-151.1,0.00023381,2]
[378148129,1754749840091,-208.0,0.0002352,2]
[378148130,1754749840100,-349.05922636,0.00023566,2]
[378148131,1754749840109,-4902.63259956,0.00023604,2]
[378148132,1754749840119,-315.03949362,0.00023702,2]
[378148134,1754749840129,-151.1,0.00023767,2]
[378148136,1754749840139,-189.02,0.00023781,2]
[378148138,1754749840149,-233.82,0.00023832,2]
[378148140,1754749840158,-500.0,0.00023835,2]
[378148142,1754749840167,-500.0,0.00023835,2]
[378148144,1754749840177,-600.0,0.000239,2]
[378148146,1754749840187,-403.82,0.000239,2]
[378148148,1754749840196,-316.04,0.00023902,2]
[378148150,1754749840206,-150.0,0.00023935,2]
[378148152,1754749840215,-500.0,0.00023957,2]
[378148154,1754749840225,-500.0,0.00023957,2]
[378148156,1754749840235,-369.92,0.00023962,3]
[378148158,1754749840245,-200.0,0.00023965,2]
[378148160,1754749840255,-308.7,0.00023972,2]
[378148162,1754749840265,-201.882,0.00023972,2]
[378148164,1754749840275,-4132.0,0.00023972,2]
[378148166,1754749840286,-956.0,0.00023972,2]
[378148168,1754749840299,-151.0,0.00023972,7]
[378148170,1754749840315,-164.511536,0.00023972,7]
[378148172,1754749840324,-155.53,0.00023973,2]
[378148174,1754749840334,-151.0,0.00023973,7]
[378148176,1754749840343,-181.786,0.0002398,5]
[378148178,1754749840352,-1894.865,0.0002398,5]
[378148180,1754749840361,-208.0,0.00024,2]
[378148182,1754749840371,-2088.11,0.00024,2]
[378148184,1754749840380,-4902.63259956,0.00024034,2]
[378148186,1754749840389,-151.0,0.00024036,7]
[378148188,1754749840400,-816.645654,0.00024036,7]
[378148190,1754749840409,-816.645654,0.00024036,7]
[378148192,1754749840418,-151.646029,0.00024036,7]
[378148194,1754749840427,-169.715098,0.00024036,7]
[378148196,1754749840437,-151.0,0.00024036,7]
[378148198,1754749840446,-158.789933,0.00024036,7]
[378148200,1754749840455,-1000.0,0.00024036,2]
[378148203,1754749840466,-698.0609,0.00024057,2]
[378148204,1754749840475,-207.65,0.00024057,2]
[378148207,1754749840485,-200.0,0.000241,7]
[378148209,1754749840494,-151.0,0.00024121,7]
[378148210,1754749840504,-151.0,0.00024121,7]
[378148213,1754749840513,-151.0,0.00024121,7]
[378148215,1754749840522,-151.0,0.00024121,7]
[378148217,1754749840531,-151.0,0.00024121,7]
[378148219,1754749840541,-151.0,0.00024121,7]
[378148221,1754749840551,-151.0,0.00024121,7]
[378148223,1754749840560,-170.45726,0.00024121,7]
[378148225,1754749840570,-170.45726,0.00024121,7]
[378148227,1754749840579,-606.79791,0.00024121,7]
[378148228,1754749840589,-606.79791,0.00024121,7]
[378148230,1754749840598,-151.0,0.00024121,7]
[378148232,1754749840607,-151.23555258,0.00024121,2]
[378148234,1754749840616,-151.0,0.00024121,7]
[378148236,1754749840626,-151.0,0.00024121,7]
[378148238,1754749840635,-75231.69172266,0.00024136,2]
[378148241,1754749840646,-1363.23178245,0.00024136,2]
[378148243,1754749840655,-13086.0687,0.00024136,2]
[378148245,1754749840665,-151.0,0.00024136,7]
[378148247,1754749840674,-151.755399,0.00024136,7]
[378148249,1754749840683,-151.0,0.00024136,7]
[378148251,1754749840693,-151.0,0.00024136,7]
[378148253,1754749840702,-151.0,0.00024136,7]
[378148255,1754749840711,-151.0,0.00024136,7]
[378148257,1754749840721,-151.0,0.00024136,7]
[378148259,1754749840731,-202.704113,0.00024136,7]
[378148261,1754749840740,-202.704113,0.00024136,7]
[378148263,1754749840749,-151.0,0.00024136,7]
[378148265,1754749840758,-484.426623,0.00024136,7]
[378148267,1754749840768,-484.426623,0.00024136,7]
[378148269,1754749840777,-151.0,0.00024136,7]
[378148271,1754749840787,-151.0,0.00024136,7]
[378148273,1754749840796,-151.0,0.00024136,7]
[378148275,1754749840806,-151.0,0.00024136,7]
[378148295,1754749840815,-151.0,0.00024136,7]
[378148300,1754749841048,-151.0,0.00024136,7]
[378148302,1754749841059,-151.0,0.00024136,7]
[378148304,1754749841069,-153.431567,0.00024136,7]
[378148306,1754749841079,-153.431567,0.00024136,7]
[378148308,1754749841090,-151.0,0.00024136,7]
[378148310,1754749841100,-151.0,0.00024136,7]
[378148312,1754749841110,-151.0,0.00024136,7]
[378148314,1754749841120,-151.0,0.00024136,7]
[378148316,1754749841133,-151.0,0.00024136,7]
[378148318,1754749841143,-151.0,0.00024136,7]
[378148320,1754749841154,-151.0,0.00024136,7]
[378148322,1754749841164,-187.066932,0.00024136,7]
[378148324,1754749841176,-151.0,0.00024136,7]
[378148326,1754749841186,-151.0,0.00024136,7]
[378148328,1754749841196,-151.0,0.00024136,7]
[378148330,1754749841205,-151.0,0.00024136,7]
[378148331,1754749841214,-267.174923,0.00024136,7]
[378148333,1754749841223,-267.174923,0.00024136,7]
[378148335,1754749841233,-221.173988,0.00024136,7]
[378148337,1754749841243,-221.173988,0.00024136,7]
[378148339,1754749841253,-151.0,0.00024136,7]
[378148341,1754749841263,-151.0,0.00024136,7]
[378148343,1754749841273,-151.0,0.00024136,7]
[378148345,1754749841282,-9236.5349,0.00024136,2]
[378148347,1754749841292,-5000.0,0.00024136,2]
[378148349,1754749841304,-457.70825493,0.0002414,7]
[378148351,1754749841314,-842.55686218,0.0002414,7]
[378148353,1754749841323,-302.57685317,0.00024148,2]
[378148355,1754749841333,-157.88430855,0.0002415,2]
[378148357,1754749841343,-151.0,0.00024151,7]
[378148359,1754749841354,-151.0,0.00024151,7]
[378148361,1754749841364,-151.0,0.00024151,7]
[378148363,1754749841373,-381.177306,0.00024151,7]
[378148365,1754749841387,-381.177306,0.00024151,7]
[378148367,1754749841397,-151.0,0.00024151,7]
[378148369,1754749841406,-151.0,0.00024151,7]
[378148371,1754749841416,-151.0,0.00024151,7]
[378148373,1754749841426,-200.0,0.00024151,2]
[378148375,1754749841435,-200.0,0.00024151,2]
[378148377,1754749841445,-200.0,0.00024151,2]
[378148379,1754749841454,-200.0,0.00024151,2]
[378148381,1754749841464,-200.0,0.00024151,2]
[378148383,1754749841474,-208.784976,0.00024151,2]
[378148385,1754749841483,-151.0,0.00024151,7]
[378148387,1754749841493,-170.45726,0.00024151,7]
[378148389,1754749841502,-170.45726,0.00024151,7]
[378148391,1754749841512,-151.0,0.00024151,7]
[378148393,1754749841521,-816.645654,0.00024151,7]
[378148395,1754749841531,-816.645654,0.00024151,7]
[378148397,1754749841540,-151.1,0.00024152,2]
[378148399,1754749841549,-151.0,0.00024164,7]
[378148401,1754749841559,-151.0,0.00024164,7]
[378148403,1754749841568,-159.0,0.00024164,7]
[378148405,1754749841578,-291.0,0.00024164,7]
[378148407,1754749841589,-151.0,0.00024174,7]
[378148409,1754749841598,-151.0,0.00024174,7]
[378148411,1754749841607,-151.0,0.00024174,7]
[378148413,1754749841617,-151.0,0.00024174,7]
[378148415,1754749841629,-151.0,0.00024174,7]
[378148417,1754749841638,-606.79791,0.00024174,7]
[378148419,1754749841647,-606.79791,0.00024174,7]
[378148421,1754749841657,-151.0,0.00024174,7]
[378148423,1754749841666,-200.0,0.00024191,2]
[378148425,1754749841676,-1094850.8607717,0.000242,2]
[378148427,1754749841685,-151.0,0.000242,7]
[378148429,1754749841695,-151.0,0.000242,7]
[378148431,1754749841704,-151.0,0.000242,7]
[378148433,1754749841714,-484.426623,0.000242,7]
[378148435,1754749841723,-484.426623,0.000242,7]
[378148437,1754749841733,-151.0,0.000242,7]
[378148439,1754749841743,-151.0,0.000242,7]
[378148441,1754749841752,-151.0,0.000242,7]
[378148443,1754749841762,-151.0,0.000242,7]
[378148445,1754749841771,-151.0,0.000242,7]
[378148447,1754749841781,-288.179834,0.000242,7]
[378148449,1754749841791,-211.66152043,0.000242,7]
[378148451,1754749841800,-262.83405018,0.00024208,2]
[378148453,1754749841810,-1556.69048698,0.00024217,2]
[378148455,1754749841819,-151.0,0.00024221,7]
[378148457,1754749841829,-151.0,0.00024221,7]
[378148459,1754749841838,-207.383971,0.00024221,7]
[378148461,1754749841848,-207.383971,0.00024221,7]
[378148463,1754749841857,-207.383971,0.00024221,7]
[378148465,1754749841867,-207.383971,0.00024221,7]
[378148467,1754749841876,-151.0,0.00024221,7]
[378148469,1754749841886,-151.0,0.00024221,7]
[378148471,1754749841896,-262.564826,0.00024221,7]
[378148473,1754749841905,-151.0,0.00024221,7]
[378148475,1754749841915,-151.0,0.00024221,7]
[378148477,1754749841924,-314.15328,0.00024221,7]
[378148479,1754749841934,-314.15328,0.00024221,7]
[378148481,1754749841944,-314.15328,0.00024221,7]
[378148483,1754749841953,-314.15328,0.00024221,7]
[378148485,1754749841963,-151.0,0.00024221,7]
[378148487,1754749841972,-151.0,0.00024221,7]
[378148489,1754749841981,-151.0,0.00024221,7]
[378148491,1754749841991,-151.384435,0.00024221,7]
[378148493,1754749842000,-151.0,0.00024221,7]
[378148495,1754749842011,-151.0,0.00024221,7]
[378148497,1754749842021,-552.176514,0.00024221,7]
[378148499,1754749842031,-552.176514,0.00024221,7]
[378148501,1754749842041,-254.913634,0.00024221,7]
[378148503,1754749842052,-151.0,0.00024221,7]
[378148505,1754749842061,-153.431567,0.00024221,7]
[378148507,1754749842071,-153.431567,0.00024221,7]
[378148508,1754749842080,-241.952937,0.00024221,7]
[378148510,1754749842090,-151.0,0.00024221,7]
[378148512,1754749842100,-151.0,0.00024221,7]
[378148514,1754749842110,-280.454122,0.00024221,7]
[378148516,1754749842119,-151.0,0.00024221,7]
[378148518,1754749842129,-151.0,0.00024221,7]
[378148520,1754749842139,-151.0,0.00024221,7]
[378148522,1754749842149,-151.0,0.00024221,7]
[378148524,1754749842159,-783.66,0.00024226,2]
[378148527,1754749842169,-305.66200097,0.00024226,2]
[378148529,1754749842178,-297.389852,0.0002423,7]
[378148530,1754749842188,-151.0,0.00024235,7]
[378148533,1754749842198,-151.0,0.00024235,7]
[378148534,1754749842207,-151.0,0.00024235,7]
[378148536,1754749842216,-151.0,0.00024235,7]
[378148538,1754749842226,-157.633557,0.00024235,7]
[378148540,1754749842235,-151.0,0.00024235,7]
[378148542,1754749842245,-151.0,0.00024235,7]
[378148544,1754749842255,-152.677323,0.00024235,7]
[378148546,1754749842265,-216.24829841,0.00024235,2]
[378148549,1754749842275,-2341.51,0.00024235,2]
[378148550,1754749842284,-969.39,0.00024235,3]
[378148553,1754749842297,-2819.03,0.00024235,2]
[378148555,1754749842308,-151.0,0.00024236,7]
[378148557,1754749842318,-151.0,0.00024236,7]
[378148559,1754749842328,-151.0,0.00024236,7]
[378148561,1754749842337,-156.870967,0.00024236,7]
[378148563,1754749842349,-151.0,0.00024236,7]
[378148565,1754749842360,-151.0,0.00024236,7]
[378148567,1754749842370,-151.0,0.00024236,7]
[378148569,1754749842382,-151.0,0.00024236,7]
[378148571,1754749842392,-151.0,0.00024236,7]
[378148573,1754749842402,-151.0,0.00024236,7]
[378148575,1754749842412,-301.140968,0.00024236,7]
[378148577,1754749842422,-198.654431,0.00024236,7]
[378148579,1754749842431,-151.0,0.00024236,7]
[378148581,1754749842441,-151.0,0.00024236,7]
[378148583,1754749842451,-151.0,0.00024236,7]
[378148585,1754749842461,-151.0,0.00024236,7]
[378148587,1754749842471,-151.0,0.00024236,7]
[378148589,1754749842483,-151.0,0.00024236,7]
[378148591,1754749842492,-207.383971,0.00024236,7]
[378148593,1754749842502,-207.383971,0.00024236,7]
[378148595,1754749842512,-207.383971,0.00024236,7]
[378148597,1754749842521,-207.383971,0.00024236,7]
[378148599,1754749842530,-207.383971,0.00024236,7]
[378148601,1754749842540,-207.383971,0.00024236,7]
[378148603,1754749842549,-151.0,0.00024236,7]
[378148605,1754749842559,-151.0,0.00024236,7]
[378148607,1754749842569,-245.020686,0.00024236,7]
[378148610,1754749842578,-151.0,0.00024236,7]
[378148613,1754749842587,-151.0,0.00024236,7]
[378148615,1754749842596,-151.0,0.00024236,7]
[378148617,1754749842606,-151.0,0.00024236,7]
[378148619,1754749842615,-151.0,0.00024236,7]
[378148621,1754749842625,-197.073872,0.00024236,7]
[378148623,1754749842636,-157.633557,0.00024236,7]
[378148625,1754749842645,-157.633557,0.00024236,7]
[378148627,1754749842655,-151.0,0.00024236,7]
[378148629,1754749842664,-151.0,0.00024236,7]
[378148631,1754749842674,-151.0,0.00024236,7]
[378148633,1754749842683,-151.0,0.00024236,7]
[378148635,1754749842692,-314.15328,0.00024236,7]
[378148637,1754749842702,-314.15328,0.00024236,7]
[378148639,1754749842711,-314.15328,0.00024236,7]
[378148641,1754749842721,-314.15328,0.00024236,7]
[378148643,1754749842730,-314.15328,0.00024236,7]
[378148645,1754749842740,-314.15328,0.00024236,7]
[378148647,1754749842750,-151.0,0.00024236,7]
[378148649,1754749842759,-151.0,0.00024236,7]
[378148651,1754749842770,-151.0,0.00024236,7]
[378148653,1754749842779,-151.0,0.00024236,7]
[378148655,1754749842788,-151.0,0.00024236,7]
[378148657,1754749842798,-151.0,0.00024236,7]
[378148659,1754749842807,-151.0,0.00024236,7]
[378148661,1754749842817,-151.0,0.00024236,7]
[378148663,1754749842826,-151.0,0.00024236,7]
[378148665,1754749842836,-151.0,0.00024236,7]
[378148667,1754749842845,-191.748918,0.00024236,7]
[378148669,1754749842855,-151.0,0.00024236,7]
[378148671,1754749842864,-151.0,0.00024236,7]
[378148673,1754749842873,-151.0,0.00024236,7]
[378148675,1754749842883,-173.625554,0.00024236,7]
[378148677,1754749842892,-151.0,0.00024236,7]
[378148679,1754749842901,-151.0,0.00024236,7]
[378148681,1754749842910,-151.0,0.00024236,7]
[378148683,1754749842920,-151.0,0.00024236,7]
[378148685,1754749842929,-297.51422,0.00024236,7]
[378148687,1754749842939,-153.687415,0.00024236,7]
[378148689,1754749842948,-151.0,0.00024236,7]
[378148691,1754749842958,-151.0,0.00024236,7]
[378148693,1754749842967,-297.072621,0.00024236,7]
[378148695,1754749842976,-202.704113,0.00024236,7]
[378148697,1754749842985,-202.704113,0.00024236,7]
[378148699,1754749842995,-202.704113,0.00024236,7]
[378148701,1754749843005,-202.704113,0.00024236,7]
[378148703,1754749843014,-202.704113,0.00024236,7]
[378148705,1754749843023,-202.704113,0.00024236,7]
[378148707,1754749843033,-151.0,0.00024236,7]
[378148709,1754749843043,-151.0,0.00024236,7]
[378148711,1754749843053,-151.0,0.00024236,7]
[378148713,1754749843063,-210.016547,0.00024236,7]
[378148715,1754749843074,-151.0,0.00024236,7]
[378148717,1754749843083,-151.0,0.00024236,7]
[378148719,1754749843093,-484.426623,0.00024236,7]
[378148721,1754749843103,-484.426623,0.00024236,7]
[378148723,1754749843113,-484.426623,0.00024236,7]
[378148725,1754749843123,-484.426623,0.00024236,7]
[378148727,1754749843134,-484.426623,0.00024236,7]
[378148729,1754749843143,-484.426623,0.00024236,7]
[378148731,1754749843152,-151.0,0.00024236,7]
[378148733,1754749843163,-153.163081,0.00024236,7]
[378148735,1754749843172,-151.0,0.00024236,7]
[378148736,1754749843181,-151.0,0.00024236,7]
[378148738,1754749843191,-552.176514,0.00024236,7]
[378148741,1754749843201,-151.0,0.00024236,7]
[378148743,1754749843210,-552.176514,0.00024236,7]
[378148744,1754749843220,-552.176514,0.00024236,7]
[378148746,1754749843230,-552.176514,0.00024236,7]
[378148749,1754749843240,-552.176514,0.00024236,7]
[378148751,1754749843249,-552.176514,0.00024236,7]
[378148753,1754749843259,-155.283142,0.00024236,7]
[378148755,1754749843268,-151.0,0.00024236,7]
[378148757,1754749843277,-151.0,0.00024236,7]
[378148759,1754749843287,-151.0,0.00024236,7]
[378148761,1754749843296,-252.571825,0.00024236,7]
[378148762,1754749843309,-151.0,0.00024236,7]
[378148764,1754749843318,-151.0,0.00024236,7]
[378148766,1754749843328,-151.0,0.00024236,7]
[378148768,1754749843337,-151.0,0.00024236,7]
[378148770,1754749843348,-381.177306,0.00024236,7]
[378148773,1754749843358,-381.177306,0.00024236,7]
[378148774,1754749843367,-381.177306,0.00024236,7]
[378148776,1754749843379,-151.0,0.00024236,7]
[378148777,1754749843389,-381.177306,0.00024236,7]
[378148778,1754749843400,-381.177306,0.00024236,7]
[378148779,1754749843409,-381.177306,0.00024236,7]
[378148780,1754749843419,-151.0,0.00024236,7]
[378148781,1754749843429,-151.0,0.00024236,7]
[378148782,1754749843438,-151.0,0.00024236,7]
[378148783,1754749843448,-151.0,0.00024236,7]
[378148784,1754749843457,-151.0,0.00024236,7]
[378148786,1754749843468,-151.0,0.00024236,7]
[378148787,1754749843477,-151.0,0.00024236,7]
[378148792,1754749843548,-273.275618,0.00024236,7]
[378148794,1754749843558,-151.0,0.00024236,7]
[378148796,1754749843567,-151.0,0.00024236,7]
[378148798,1754749843576,-151.0,0.00024236,7]
[378148800,1754749843585,-153.431567,0.00024236,7]
[378148801,1754749843594,-153.431567,0.00024236,7]
[378148803,1754749843604,-153.431567,0.00024236,7]
[378148805,1754749843613,-153.431567,0.00024236,7]
[378148807,1754749843622,-153.431567,0.00024236,7]
[378148809,1754749843633,-153.431567,0.00024236,7]
[378148811,1754749843643,-151.0,0.00024236,7]
[378148813,1754749843652,-151.0,0.00024236,7]
[378148815,1754749843665,-151.0,0.00024236,7]
[378148817,1754749843682,-151.0,0.00024236,7]
[378148819,1754749843697,-203.901686,0.00024236,7]
[378148821,1754749843707,-151.0,0.00024236,7]
[378148823,1754749843716,-151.0,0.00024236,7]
[378148825,1754749843725,-151.0,0.00024236,7]
[378148827,1754749843734,-151.0,0.00024236,7]
[378148829,1754749843744,-151.0,0.00024236,7]
[378148831,1754749843753,-151.0,0.00024236,7]
[378148833,1754749843763,-207.103326,0.00024236,7]
[378148835,1754749843771,-151.0,0.00024236,7]
[378148837,1754749843781,-151.0,0.00024236,7]
[378148839,1754749843791,-151.0,0.00024236,7]
[378148841,1754749843800,-151.0,0.00024236,7]
[378148843,1754749843809,-151.0,0.00024236,7]
[378148845,1754749843818,-151.0,0.00024236,7]
[378148847,1754749843827,-151.0,0.00024236,7]
[378148849,1754749843836,-151.0,0.00024236,7]
[378148851,1754749843845,-151.0,0.00024236,7]
[378148853,1754749843855,-151.0,0.00024236,7]
[378148855,1754749843864,-151.0,0.00024236,7]
[378148857,1754749843873,-151.0,0.00024236,7]
[378148859,1754749843885,-151.0,0.00024236,7]
[378148861,1754749843895,-151.0,0.00024236,7]
[378148864,1754749843904,-151.0,0.00024236,7]
[378148866,1754749843914,-151.0,0.00024236,7]
[378148867,1754749843924,-151.0,0.00024236,7]
[378148869,1754749843933,-151.0,0.00024236,7]
[378148871,1754749843943,-151.0,0.00024236,7]
[378148873,1754749843953,-151.0,0.00024236,7]
[378148875,1754749843962,-151.0,0.00024236,7]
[378148879,1754749843973,-151.0,0.00024236,7]
[378148881,1754749843982,-151.0,0.00024236,7]
[378148883,1754749843992,-151.0,0.00024236,7]
[378148885,1754749844002,-151.0,0.00024236,7]
[378148887,1754749844011,-152.977622,0.00024236,7]
[378148889,1754749844021,-246.234253,0.00024236,7]
[378148891,1754749844031,-170.45726,0.00024236,7]
[378148893,1754749844040,-170.45726,0.00024236,7]
[378148895,1754749844049,-170.45726,0.00024236,7]
[378148897,1754749844059,-170.45726,0.00024236,7]
[378148899,1754749844069,-170.45726,0.00024236,7]
[378148901,1754749844078,-170.45726,0.00024236,7]
[378148903,1754749844087,-170.45726,0.00024236,7]
[378148905,1754749844096,-170.45726,0.00024236,7]
[378148907,1754749844106,-606.79791,0.00024236,7]
[378148909,1754749844115,-606.79791,0.00024236,7]
[378148911,1754749844124,-606.79791,0.00024236,7]
[378148913,1754749844134,-606.79791,0.00024236,7]
[378148915,1754749844144,-267.174923,0.00024236,7]
[378148917,1754749844154,-267.174923,0.00024236,7]
[378148919,1754749844163,-267.174923,0.00024236,7]
[378148921,1754749844173,-267.174923,0.00024236,7]
[378148923,1754749844182,-606.79791,0.00024236,7]
[378148925,1754749844191,-606.79791,0.00024236,7]
[378148927,1754749844201,-606.79791,0.00024236,7]
[378148929,1754749844210,-606.79791,0.00024236,7]
[378148931,1754749844219,-151.0,0.00024236,7]
[378148933,1754749844229,-151.0,0.00024236,7]
[378148935,1754749844238,-151.0,0.00024236,7]
[378148937,1754749844247,-267.174923,0.00024236,7]
[378148939,1754749844257,-267.174923,0.00024236,7]
[378148941,1754749844266,-267.174923,0.00024236,7]
[378148943,1754749844275,-267.174923,0.00024236,7]
[378148945,1754749844285,-221.173988,0.00024236,7]
[378148947,1754749844295,-221.173988,0.00024236,7]
[378148949,1754749844309,-221.173988,0.00024236,7]
[378148951,1754749844320,-221.173988,0.00024236,7]
[378148953,1754749844329,-221.173988,0.00024236,7]
[378148955,1754749844338,-221.173988,0.00024236,7]
[378148957,1754749844349,-221.173988,0.00024236,7]
[378148959,1754749844358,-221.173988,0.00024236,7]
[378148961,1754749844367,-151.0,0.00024236,7]
[378148963,1754749844378,-151.0,0.00024236,7]
[378148965,1754749844388,-151.0,0.00024236,7]
[378148967,1754749844398,-151.0,0.00024236,7]
[378148969,1754749844408,-151.0,0.00024236,7]
[378148971,1754749844417,-257.430966,0.00024236,7]
[378148973,1754749844427,-816.645654,0.00024236,7]
[378148975,1754749844438,-816.645654,0.00024236,7]
[378148977,1754749844447,-816.645654,0.00024236,7]
[378148979,1754749844457,-816.645654,0.00024236,7]
[378148981,1754749844468,-816.645654,0.00024236,7]
[378148983,1754749844477,-816.645654,0.00024236,7]
[378148985,1754749844487,-816.645654,0.00024236,7]
[378148987,1754749844498,-816.645654,0.00024236,7]
[378148989,1754749844507,-151.0,0.00024236,7]
[378148991,1754749844517,-151.0,0.00024236,7]
[378148993,1754749844527,-151.0,0.00024236,7]
[378148995,1754749844536,-151.0,0.00024236,7]
[378148997,1754749844545,-53118.94969787,0.00024236,2]
[378148999,1754749844555,-274.81673966,0.00024236,2]
[378149001,1754749844565,-560.51342106,0.00024236,2]
[378149003,1754749844575,-1064362.42,0.00024236,2]
[378149005,1754749844585,-300.0,0.0002425,2]
[378149007,1754749844595,-500.0,0.00024273,2]
[378149009,1754749844604,-194.56,0.00024298,2]
[378149011,1754749844613,-842.55686218,0.000243,7]
[378149013,1754749844623,-155.11,0.00024314,2]
[378149015,1754749844633,-153.0,0.00024318,2]
[378149017,1754749844643,-159.7057082,0.00024318,2]
[378149019,1754749844653,-1215.0,0.00024318,2]
[378149021,1754749844663,-1215.0,0.00024318,2]
[378149023,1754749844673,-153.0,0.00024318,2]
[378149025,1754749844683,-153.0,0.00024318,2]
[378149027,1754749844693,-1215.0,0.00024318,2]
[378149029,1754749844703,-284.41802915,0.00024318,2]
[378149031,1754749844713,-153.0,0.00024318,2]
[378149033,1754749844722,-151.0,0.00024324,2]
[378149035,1754749844732,-151.0,0.00024324,2]
[378149037,1754749844741,-242.69556983,0.00024324,2]
[378149039,1754749844751,-151.0,0.00024324,2]
[378149041,1754749844760,-151.0,0.00024324,2]
[378149043,1754749844770,-302.0,0.00024324,2]
[378149046,1754749844779,-153.0,0.00024324,2]
[378149048,1754749844789,-155.42404249,0.00024324,2]
[378149050,1754749844799,-153.0,0.00024324,2]